[Event "RUDAR 2 IM 2022"]
[Site "Pozarevac"]
[Date "2022.04.02"]
[Round "?"]
[White "Dudukovic, Nikola"]
[Black "Anishka Vikram"]
[Result "1-0"]
[ECO "E17"]
[WhiteElo "2362"]
[BlackElo "2000"]
[Annotator "NA"]
[PlyCount "81"]
[EventDate "2022.03.27"]
[EventType "tourn"]
[EventCountry "SRB"]
[SourceTitle "playchess.com"]
[Source "ChessBase"]
[SourceQuality "1"]
[TimeControl "40/5400+30:900+30"]

1. Nf3 {[%emt 0:00:07]} Nf6 {[%emt 0:00:30]} 2. c4 {[%emt 0:00:08]} e6 {[%emt 0:00:15]} 3. g3 {[%emt 0:01:25]} d5 {[%emt 0:00:20]} 4. Bg2 {[%emt 0:00:06]} Be7 {[%emt 0:00:09]} 5. O-O {[%emt 0:00:14]} O-O {[%emt 0:00:08]} 6. b3 {[%emt 0:00:54]} b6 {[%emt 0:05:02]} 7. Bb2 {[%emt 0:01:15]} Bb7 {[%emt 0:01:37]} 8. d4 {[%emt 0:00:59]} Nbd7 {[%emt 0:03:13]} 9. cxd5 {[%emt 0:04:44]} exd5 {[%emt 0:00:19]} 10. Ne5 {[%emt 0:05:31]} c5 {[%emt 0:07:51]} 11. Nxd7 {[%emt 0:06:57]} Qxd7 {[%emt 0:00:14]} 12. Nd2 {[%emt 0:01:27]} Rac8 {[%emt 0:13:07]} 13. dxc5 {[%emt 0:06:05]} bxc5 {[%emt 0:00:42]} 14. Rc1 {[%emt 0:03:32]} Ba6 {[%emt 0:06:29]} 15. Rc2 {[%emt 0:07:27]} Qf5 {[%emt 0:07:04]} 16. Re1 {[%emt 0:10:04]} d4 {[%emt 0:10:49]} 17. e4 {[%emt 0:04:21]} dxe3 {[%emt 0:05:29]} 18. Rxe3 {[%emt 0:00:16]} Rfe8 {[%emt 0:14:03]} 19. Ne4 {[%emt 0:08:38]} Ng4 {[%emt 0:04:36]} 20. Re1 {[%emt 0:01:33]} Rcd8 {[%emt 0:09:18]} 21. Rd2 {[%emt 0:06:11]} Rxd2 {[%emt 0:00:55]} 22. Qxd2 {[%emt 0:00:08]} Rd8 {[%emt 0:00:44]} 23. Qa5 {[%emt 0:03:03]} Bb7 {[%emt 0:02:29]} 24. h3 {[%emt 0:01:53]} Nh6 {[%emt 0:03:39]} 25. Qxa7 {[%emt 0:08:05]} Qc8 {[%emt 0:01:46]} 26. Nd6 {[%emt 0:05:53]} Bxd6 {[%emt 0:00:24]} 27. Qxb7 {[%emt 0:00:29]} Qxb7 {[%emt 0:01:28]} 28. Bxb7 {[%emt 0:00:07]} f6 {[%emt 0:00:17]} 29. a4 {[%emt 0:01:45]} Bc7 {[%emt 0:00:38]} 30. Ba3 {[%emt 0:00:15]} Bb6 {[%emt 0:00:49]} 31. Re6 {[%emt 0:00:22]} Ba7 {[%emt 0:00:32]} 32. Ra6 {[%emt 0:00:30]} Bb8 {[%emt 0:00:09]} 33. Bxc5 {[%emt 0:00:23]} Nf5 {[%emt 0:00:20]} 34. a5 {[%emt 0:01:30]} Kf7 {[%emt 0:01:03]} 35. b4 {[%emt 0:01:58]} Rd1+ {[%emt 0:00:19]} 36. Kg2 {[%emt 0:00:06]} Rd2 {[%emt 0:00:07]} 37. Ra8 {[%emt 0:01:45]} Bxg3 {[%emt 0:00:25]} 38. Rf8+ {[%emt 0:00:28]} Kg6 {[%emt 0:00:06]} 39. a6 {[%emt 0:00:25]} Bf4 {[%emt 0:00:35]} 40. Be4 {[%emt 0:00:00]} Re2 {[%emt 0:00:00]} 41. Kf3 {[%emt 0:01:09]} 1-0

[Event "RUDAR 2 IM 2022"]
[Site "Pozarevac"]
[Date "2022.04.02"]
[Round "?"]
[White "Velikic, Adela"]
[Black "Acor, Corey"]
[Result "0-1"]
[ECO "C54"]
[WhiteElo "2258"]
[BlackElo "2326"]
[Annotator "TA"]
[PlyCount "192"]
[EventDate "2022.03.27"]
[EventType "tourn"]
[EventCountry "SRB"]
[SourceTitle "playchess.com"]
[Source "ChessBase"]
[SourceQuality "1"]
[TimeControl "40/5400+30:900+30"]

{[%evp 17,192,0,0,0,32,0,20,13,17,17,15,20,24,15,18,22,25,23,32,11,26,0,0,0,25,12,77,79,122,125,125,79,78,29,25,31,31,0,89,0,0,0,0,0,0,0,0,0,0,0,0,0,0,0,0,0,0,0,0,0,0,-36,0,-8,0,-8,0,0,0,-73,-62,-68,-83,-74,-68,-81,-60,-73,-66,-152,-151,-158,-60,-58,0,0,0,0,0,0,0,0,0,0,0,0,0,0,0,0,0,0,0,0,0,0,0,0,12,18,32,8,1449,0,8,8,8,0,0,0,0,-8,0,0,0,-188,-160,-218,-220,-209,-209,-224,-10,-409,-416,-416,-417,-7652,-1570,-29952,-9764,-29957,-29961,-821,-4742,-8104,-1231,-8243,-12761,-2612,-10129,-1201,-860,-29975,-29976,-29976,-29977,-29978,-29979,-29979,-29980,-29980,-29980,-29980,-29981,-29981,-29982,-29982,-29983,-29982,-29983,-29985,-29985,-29985,-29984,-29988,-29984]} 1. e4 {[%emt 0:00:05]} e5 {[%emt 0:00:14]} 2. Nf3 {[%emt 0:00:07]} Nc6 {[%emt 0:00:07]} 3. Bc4 {[%emt 0:00:06]} Bc5 {[%emt 0:00:18]} 4. c3 {[%emt 0:00:09]} Nf6 {[%emt 0:00:09]} 5. d4 {[%emt 0:00:08]} exd4 {[%emt 0:00:11]} 6. e5 {[%emt 0:00:09]} d5 {[%emt 0:00:40]} 7. Bb5 {[%emt 0:00:08]} Ne4 {[%emt 0:00:22]} 8. cxd4 {[%emt 0:00:09]} Bb6 {[%emt 0:00:12]} 9. Nc3 {[%emt 0:00:11]} O-O {[%emt 0:01:18]} 10. Be3 {[%emt 0:00:12] C54: Giuoco Piano: 4 c3 Nf6, main lines with 5 d4 and 5 d3.} Bf5 {[%emt 0:16:02]} 11. Rc1 {[%emt 0:14:21]} Ne7 {[%emt 0:07:30]} 12. O-O {[%emt 0:06:07] [#] The position is equal.} Ng6 $146 {[%emt 0:04:28]} ({Predecessor:} 12... c6 13. Bd3 Nxc3 14. Rxc3 Bxd3 15. Qxd3 Qd7 16. h3 Nf5 17. Rb1 Nxe3 18. Qxe3 Qf5 {0-1 (32) Ghimpu,S (2431)-Batsiashvili,N (2486) Chess.com INT 2021}) 13. Bd3 {[%emt 0:10:43][%cal Of3g5]} Nxc3 {[%emt 0:03:15]} 14. bxc3 {[%emt 0:06:06]} Qd7 {[%emt 0:00:31]} 15. Re1 {[%emt 0:14:22]} Rae8 {[%emt 0:03:32]} 16. Bxf5 {[%emt 0:07:19]} Qxf5 {[%emt 0:01:26]} 17. Qb3 {[%emt 0:00:24]} Qd7 {[%emt 0:08:39]} 18. a4 {[%emt 0:38:44]} f6 {[%emt 0:50:36][%cal Rf6e5]} 19. exf6 {[%emt 0:00:00]} Rxf6 {[%emt 0:00:00]} 20. Bg5 {[%emt 0:00:00]} Rff8 {[%emt 0:00:00]} (20... Rxf3 $5 21. Rxe8+ (21. gxf3 Rf8 $11) 21... Qxe8 22. gxf3 Qf7 $11) 21. h4 {[%emt 0:00:00][%cal Bh2h4,Bh4h5][%mdl 32]} Rxe1+ {[%emt 0:00:00]} (21... c6 $1 $11) 22. Rxe1 $16 {[%emt 0:00:00][%cal Bc1e1,Be1e3,Be3e8][%mdl 32]} c6 {[%emt 0:00:00]} 23. h5 {[%emt 0:00:00]} Nf4 {[%emt 0:00:00][%cal Of4g2]} 24. Bxf4 {[%emt 0:00:00]} (24. Re7 $142 Qg4 25. Bxf4 Qxf4 26. Qb1 (26. Rxb7 Qc1+ 27. Kh2 Bc7+ 28. Rxc7 Qf4+ 29. Kg1 Qxc7 $15)) 24... Rxf4 {[%emt 0:00:00]} 25. Qc2 {[%emt 0:00:00]} (25. Ne5 $16 Qc7 26. Qd1) 25... Qf7 $11 {[%emt 0:00:00]} 26. h6 {[%emt 0:00:45]} gxh6 {[%emt 0:00:00]} 27. Re3 {[%emt 0:01:34]} Qg6 {[%emt 0:00:00]} (27... Bc7 $11) 28. Qe2 {[%emt 0:00:40]} (28. Qb3 $16) 28... Bc7 {[%emt 0:00:00][%cal Of4f3]} 29. Re8+ {[%emt 0:01:03]} Rf8 {[%emt 0:00:00]} 30. Re6 {[%emt 0:01:10]} Qh5 {[%emt 0:00:00]} 31. Re7 {[%emt 0:00:31]} Rf7 $1 {[%emt 0:03:47]} 32. Qe6 {[%emt 0:00:38]} Kg7 $1 {[%emt 0:00:04]} 33. Qd7 {[%emt 0:00:33]} Rxe7 {[%emt 0:00:16]} 34. Qxe7+ {[%emt 0:00:07]} Qf7 {[%emt 0:00:03]} 35. Qe2 {[%emt 0:00:31]} Kf8 {[%emt 0:00:38]} 36. g3 {[%emt 0:00:33]} Qe7 {[%emt 0:02:24]} 37. Qd2 {[%emt 0:00:11]} Kg7 {[%emt 0:01:26]} 38. Nh4 {[%emt 0:00:31]} Qe6 {[%emt 0:00:48] Inhibits Nf5+.} 39. Kh2 {[%emt 0:00:53]} Bd8 {[%emt 0:00:27]} (39... Qg4 {feels hotter.} 40. Ng2 h5 41. Qe3 Kf7) 40. Ng2 {[%emt 0:00:00]} Qf5 {[%emt 0:00:00]} 41. Qe2 {[%emt 0:04:00]} Bg5 {[%emt 0:07:35]} 42. f4 {[%emt 0:05:06]} Bd8 {[%emt 0:04:15]} 43. Ne3 {[%emt 0:01:02]} (43. Qe8 $11 {remains equal.} Qf8 44. Qe6) 43... Qe6 $17 {[%emt 0:00:31][%cal Oh6h5]} 44. Qf3 {[%emt 0:02:39]} h5 {[%emt 0:00:40]} 45. Ng2 {[%emt 0:02:05] Against h4} Qf5 {[%emt 0:00:16]} 46. Qe2 {[%emt 0:00:57]} Kf8 {[%emt 0:00:22] Against Qe8+} 47. Qb2 {[%emt 0:01:30]} b6 {[%emt 0:01:47]} 48. c4 {[%emt 0:01:06]} ({White should play} 48. Qe2 $1 $15) 48... dxc4 {[%emt 0:02:30]} 49. Qb4+ {[%emt 0:00:05]} Be7 {[%emt 0:00:20]} (49... c5 $1 $17 {[%cal Rc5b4]} 50. dxc5 Qxc5) 50. Qxc4 $15 {[%emt 0:00:05]} Qe4 {[%emt 0:00:01]} (50... Qd7 $15) 51. Qa6 $11 {[%emt 0:00:53]} Qxd4 {[%emt 0:01:21]} 52. Qc8+ {[%emt 0:00:21]} Kf7 {[%emt 0:00:31] ...Qc5 is the strong threat.} 53. Qxc6 {[%emt 0:00:09]} ({Don't play} 53. Qf5+ Kg7 $15) 53... Bc5 {[%emt 0:00:17]} 54. Qb7+ {[%emt 0:01:17]} (54. Qh6 $2 Qg1+ 55. Kh3 Qh1#) 54... Ke6 {[%emt 0:00:37]} 55. Qc6+ {[%emt 0:00:23]} (55. Qxh7 $2 {leads to mate.} Qg1+ 56. Kh3 Qh1#) 55... Ke7 {[%emt 0:00:45] Really sharp!} 56. Qb7+ {[%emt 0:00:31]} Kd6 {[%emt 0:00:38]} 57. Qb8+ $1 {[%emt 0:00:43]} Kd5 {[%emt 0:00:23]} 58. Qg8+ {[%emt 0:00:19]} (58. Qxa7 $2 Qg1+ 59. Kh3 Qh1#) 58... Kd6 {[%emt 0:01:34]} 59. Qd8+ {[%emt 0:00:35]} (59. Qxh7 $2 {is a self mate.} Qg1+ 60. Kh3 Qh1#) 59... Kc6 {[%emt 0:00:27]} 60. Qc8+ {[%emt 0:00:32]} Kd6 {[%emt 0:00:09]} 61. Qd8+ {[%emt 0:01:05]} Ke6 {[%emt 0:00:11]} 62. Qe8+ {[%emt 0:00:36]} Be7 {[%emt 0:01:18]} 63. f5+ {[%emt 0:01:07]} Kd6 {[%emt 0:00:02] Active counter play!} 64. Qb8+ {[%emt 0:00:24]} Kc6 $2 {[%emt 0:00:36][%mdl 8192]} (64... Kd7 $11) 65. Qa8+ $2 {[%emt 0:00:38]} ({White has to play} 65. Qc8+ $18 Kd6 66. Qe6+ Kc7 67. Qxe7+ Qd7 68. Qe5+ Qd6 69. Qg7+ Kc6 70. f6) 65... Kc5 {[%emt 0:00:48] Hoping for ...Bd6.} 66. Qxa7 {[%emt 0:00:21]} Bd6 {[%emt 0:00:39] aiming for ...Qg4.} 67. Qa6 {[%emt 0:00:37][%csl Ga4][%cal Ra6b5]} Kb4 {[%emt 0:00:30]} 68. Qb5+ {[%emt 0:00:17]} Ka3 {[%emt 0:00:20]} 69. Qc6 {[%emt 0:00:51]} Bc5 {[%emt 0:00:34]} 70. Qf3+ {[%emt 0:00:32]} Kxa4 {[%emt 0:00:06]} 71. Qf4 $2 {[%emt 0:00:32] [#]} (71. Kh3 $11 {and White is okay.}) 71... b5 $1 $19 {[%emt 0:00:32][%cal Bb6b5,Bb5b4,Bb4b3][%mdl 32] And now ...b4 would win.} 72. f6 {[%emt 0:00:23] [#]} (72. Qf1 $17 {was necessary.}) 72... b4 $1 {[%emt 0:00:37]} 73. Qxd4 {[%emt 0:00:29]} Bxd4 {[%emt 0:00:01][%mdl 4096] Endgame KB-KN} 74. f7 {[%emt 0:00:06]} Bg7 $2 {[%emt 0:00:30]} (74... Bc5 $19 75. Nf4 b3) 75. Ne3 $2 {[%emt 0:00:41][%mdl 8192]} (75. Nf4 $11) 75... b3 {[%emt 0:00:13] Threatens to win with ...Kb4.} 76. Nd1 {[%emt 0:00:19]} Kb4 {[%emt 0:00:21] White must now prevent ...Kc5.} 77. Kh3 {[%emt 0:00:41]} (77. Kg1 $142) 77... Kc4 {[%emt 0:00:04]} (77... Kc5 $142 78. Kh4 Kd6 79. Kxh5 Ke7) 78. Kh4 {[%emt 0:00:47]} Kd5 {[%emt 0:00:08]} 79. Kxh5 {[%emt 0:00:31]} Ke6 {[%emt 0:00:01]} 80. Kg4 {[%emt 0:00:31]} Kxf7 {[%emt 0:00:06]} 81. Kf5 {[%emt 0:00:19]} Ke7 {[%emt 0:00:25]} (81... Bf6 $142 82. g4 Bg7) 82. Ke4 {[%emt 0:00:38]} Ke6 {[%emt 0:00:15]} (82... Kf6 $142 83. Kf4 Bh6+ 84. Kf3 Ke5) 83. g4 {[%emt 0:00:27]} Kf6 {[%emt 0:00:38] ( -> ...Kg5)} 84. Kf4 {[%emt 0:00:36]} Kg6 {[%emt 0:00:04]} 85. g5 {[%emt 0:00:29]} Bf8 {[%emt 0:00:33] Black mates.} 86. Nb2 {[%emt 0:00:32]} Be7 {[%emt 0:00:15]} 87. Ke4 {[%emt 0:00:28]} Kxg5 {[%emt 0:00:16]} 88. Kf3 {[%emt 0:00:19]} Kf5 {[%emt 0:00:17]} 89. Nc4 {[%emt 0:00:15]} Bg5 {[%emt 0:00:35]} 90. Nb2 {[%emt 0:00:42]} Bf6 {[%emt 0:03:45]} 91. Nc4 {[%emt 0:00:19]} h5 {[%emt 0:00:41]} 92. Kg3 {[%emt 0:00:37]} Ke6 {[%emt 0:00:42]} 93. Kf4 {[%emt 0:00:41]} Kd5 {[%emt 0:00:25]} 94. Ne3+ {[%emt 0:00:37]} Kd4 {[%emt 0:00:13]} 95. Nd1 {[%emt 0:00:15]} Kd3 {[%emt 0:00:06]} 96. Kf5 {[%emt 0:00:14]} Kd2 {[%emt 0:02:21] What a fight!  Weighted Error Value: White=0.11 (very precise) /Black=0.13 (very precise)} 0-1

[Event "RUDAR 2 IM 2022"]
[Site "Pozarevac"]
[Date "2022.04.02"]
[Round "?"]
[White "Andreev, Konstantin"]
[Black "Milanovic, Slavisa"]
[Result "1/2-1/2"]
[ECO "C18"]
[WhiteElo "2238"]
[BlackElo "2296"]
[Annotator "ChessBase"]
[PlyCount "99"]
[EventDate "2022.03.27"]
[EventType "tourn"]
[EventCountry "SRB"]
[SourceTitle "playchess.com"]
[Source "ChessBase"]
[SourceQuality "1"]
[TimeControl "40/5400+30:900+30"]

1. e4 {[%emt 0:00:04]} e6 {[%emt 0:00:50]} 2. d4 {[%emt 0:00:10]} d5 {[%emt 0:00:06]} 3. Nc3 {[%emt 0:00:07]} Bb4 {[%emt 0:00:20]} 4. e5 {[%emt 0:00:15]} c5 {[%emt 0:00:13]} 5. a3 {[%emt 0:00:18]} Bxc3+ {[%emt 0:00:15]} 6. bxc3 {[%emt 0:00:06]} Ne7 {[%emt 0:00:07]} 7. Qg4 {[%emt 0:00:10]} Qc7 {[%emt 0:04:10]} 8. Qxg7 {[%emt 0:00:15]} Rg8 {[%emt 0:00:08]} 9. Qxh7 {[%emt 0:00:13]} cxd4 {[%emt 0:00:07]} 10. Qd3 {[%emt 0:00:33]} Qxe5+ {[%emt 0:05:31]} 11. Ne2 {[%emt 0:00:12]} dxc3 {[%emt 0:01:19]} 12. Qxc3 {[%emt 0:00:18]} Nbc6 {[%emt 0:03:23]} 13. Qxe5 {[%emt 0:03:24]} Nxe5 {[%emt 0:00:40]} 14. h4 {[%emt 0:00:31]} f6 {[%emt 0:05:39]} 15. Bb2 {[%emt 0:08:41]} N7c6 {[%emt 0:11:41]} 16. Nf4 {[%emt 0:07:15]} Kf7 {[%emt 0:03:25]} 17. O-O-O {[%emt 0:02:00]} Rb8 {[%emt 0:07:35]} 18. h5 {[%emt 0:04:29]} b5 {[%emt 0:04:52]} 19. h6 {[%emt 0:01:27]} Bd7 {[%emt 0:09:06]} 20. Be2 {[%emt 0:03:34]} Rgc8 {[%emt 0:01:18]} 21. Bh5+ {[%emt 0:06:57]} Ke7 {[%emt 0:01:34]} 22. h7 {[%emt 0:01:16]} b4 {[%emt 0:03:17]} 23. axb4 {[%emt 0:04:12]} Nxb4 {[%emt 0:04:07]} 24. Bxe5 {[%emt 0:01:51]} fxe5 {[%emt 0:00:53]} 25. h8=Q {[%emt 0:01:36]} Rxh8 {[%emt 0:03:52]} 26. Ng6+ {[%emt 0:00:35]} Kf6 {[%emt 0:00:42]} 27. Nxh8 {[%emt 0:00:16]} Rxh8 {[%emt 0:00:06]} 28. Be2 {[%emt 0:00:40]} Rc8 {[%emt 0:01:09]} 29. c4 {[%emt 0:22:10]} Bb5 {[%emt 0:06:08]} 30. Rh6+ {[%emt 0:00:15]} Ke7 {[%emt 0:01:39]} 31. Rh7+ {[%emt 0:00:15]} Kf6 {[%emt 0:01:59]} 32. Rxa7 {[%emt 0:05:54]} dxc4 {[%emt 0:04:49]} 33. Ra5 {[%emt 0:05:46]} Nd3+ {[%emt 0:02:18]} 34. Kc2 {[%emt 0:01:36]} Bc6 {[%emt 0:02:43]} 35. Bxd3 {[%emt 0:10:33]} cxd3+ {[%emt 0:00:05]} 36. Kxd3 {[%emt 0:00:19]} Bxg2 {[%emt 0:00:23]} 37. Rb1 {[%emt 0:01:33]} Kf5 {[%emt 0:04:24]} 38. Rb4 {[%emt 0:01:33]} Bd5 {[%emt 0:00:53]} 39. Rh4 {[%emt 0:01:22]} Rb8 {[%emt 0:00:46]} 40. Ra7 {[%emt 0:00:00]} Rb2 {[%emt 0:00:00]} 41. Rh8 {[%emt 0:04:04]} e4+ {[%emt 0:06:56]} 42. Ke3 {[%emt 0:01:13]} Rb3+ {[%emt 0:00:23]} 43. Kd4 {[%emt 0:02:16]} Rd3+ {[%emt 0:00:57]} 44. Kc5 {[%emt 0:00:05]} Rc3+ {[%emt 0:00:44]} 45. Kd6 {[%emt 0:00:27]} Rc6+ {[%emt 0:00:39]} 46. Kd7 {[%emt 0:00:18]} Kg4 {[%emt 0:02:04]} 47. Ra3 {[%emt 0:00:30]} Kf4 {[%emt 0:05:02]} 48. Ke7 {[%emt 0:01:27]} Ke5 {[%emt 0:01:34]} 49. Kd7 {[%emt 0:01:27]} Rb6 {[%emt 0:00:54]} 50. Rh5+ {[%emt 0:00:07]} 1/2-1/2

[Event "RUDAR 2 IM 2022"]
[Site "Pozarevac"]
[Date "2022.04.02"]
[Round "?"]
[White "Rajkovic, Aleksandar"]
[Black "Savitha Shri B"]
[Result "0-1"]
[ECO "A03"]
[WhiteElo "2181"]
[BlackElo "2257"]
[Annotator "TA"]
[PlyCount "78"]
[EventDate "2022.03.27"]
[EventType "tourn"]
[EventCountry "SRB"]
[SourceTitle "playchess.com"]
[Source "ChessBase"]
[SourceQuality "1"]
[TimeControl "40/5400+30:900+30"]

{[%evp 9,78,3,6,10,14,33,34,23,21,15,17,5,3,-11,0,-35,-15,-45,0,-63,-46,-70,-60,-79,-76,-194,-192,-192,-189,-192,-184,-234,-227,-287,-262,-248,-287,-262,-269,-268,-266,-292,-210,-275,-271,-273,-269,-460,-454,-509,-504,-603,-520,-586,-575,-583,-579,-566,-471,-572,-595,-1029,-1037,-1037,-1031,-997,-990,-955,-829,-6207,-6183]} 1. f4 {[%emt 0:00:19]} d5 {[%emt 0:01:54]} 2. Nf3 {[%emt 0:00:23]} Nf6 {[%emt 0:00:22]} 3. e3 {[%emt 0:02:00]} g6 {[%emt 0:01:11]} 4. c4 {[%emt 0:01:52]} c6 {[%emt 0:07:29]} 5. b3 {[%emt 0:01:33]} Bg7 {[%emt 0:01:38]} 6. Bb2 {[%emt 0:00:06] A03: Bird's Opening with 1...d5.} Bf5 {[%emt 0:03:34]} 7. Be2 {[%emt 0:02:50]} O-O {[%emt 0:03:23]} 8. O-O {[%emt 0:01:18] [#] White is slightly better.} a5 $146 {[%emt 0:04:11]} ({Predecessor:} 8... Nbd7 9. Nh4 Nc5 10. Nxf5 gxf5 11. Qc2 dxc4 12. Bxc4 Nce4 13. Bd3 Qd5 14. Nc3 Nxc3 15. Bxc3 {0-1 (40) Van Riemsdijk,F (1735)-Cirilo,G (1902) Sao Paulo 2016}) 9. cxd5 {[%emt 0:06:12]} cxd5 {[%emt 0:01:08]} 10. Na3 {[%emt 0:05:30]} Na6 {[%emt 0:07:41]} 11. Nd4 {[%emt 0:15:29]} Bd7 {[%emt 0:00:39]} 12. Nab5 {[%emt 0:03:57]} Qb6 {[%emt 0:06:17]} 13. Rc1 {[%emt 0:06:56]} Rac8 {[%emt 0:03:34]} (13... Ne4 $5 {[%cal Rd7b5]} 14. Rb1 Rac8 $15) 14. a4 {[%emt 0:01:13]} ({White should try} 14. Nc3 $11) 14... Nb4 {[%emt 0:01:57]} 15. Ba3 {[%emt 0:04:35]} Ne4 {[%emt 0:04:14]} 16. Bxb4 {[%emt 0:03:58]} Bxd4 {[%emt 0:07:27] Black keeps a firm grip on the game.} 17. Bxa5 {[%emt 0:05:03] [#]} Bxe3+ $1 $19 {[%emt 0:11:06][%mdl 512]} 18. Kh1 {[%emt 0:01:49]} Qxa5 {[%emt 0:01:03]} 19. dxe3 {[%emt 0:00:49]} Nd2 {[%emt 0:01:06]} 20. Rxc8 {[%emt 0:04:10]} (20. Rg1 {keeps fighting.}) 20... Rxc8 {[%emt 0:00:16]} 21. Re1 {[%emt 0:00:23] [#]} Nxb3 $1 {[%emt 0:02:32][%mdl 512] White must now prevent ...Rc1.} 22. Rg1 {[%emt 0:01:38]} Bxb5 {[%emt 0:10:56]} (22... Qxa4 23. Qxd5 Bc6 24. Qe5) 23. Bxb5 {[%emt 0:00:48] [#]} Rc1 $1 {[%emt 0:00:58]} 24. Qe2 {[%emt 0:00:20]} (24. Qxb3 {[#] gets mated.} Qe1 $3 {[%mdl 512]}) 24... Qc3 {[%emt 0:00:20]} 25. h3 {[%emt 0:01:59]} Nd2 {[%emt 0:01:31][%cal Bb3d2,Bd2c4,Bc4e3][%mdl 32]} 26. Rxc1 {[%emt 0:04:39]} Qxc1+ {[%emt 0:00:01]} 27. Kh2 {[%emt 0:00:21]} Nc4 {[%emt 0:06:42]} 28. f5 $2 {[%emt 0:03:06]} (28. e4 {was called for.}) 28... Nxe3 {[%emt 0:03:52] Black is clearly winning.} 29. fxg6 {[%emt 0:00:56]} hxg6 {[%emt 0:00:05]} 30. Qf3 {[%emt 0:00:42]} Qd2 {[%emt 0:01:14]} 31. Be8 {[%emt 0:01:05]} Nf5 {[%emt 0:00:08]} 32. Bd7 {[%emt 0:00:14]} e6 {[%emt 0:01:16][%cal Be7e6,Be6e5,Be5e4][%mdl 32]} 33. Kg1 {[%emt 0:01:27]} Qe1+ {[%emt 0:00:19]} 34. Qf1 {[%emt 0:00:11]} Qe3+ {[%emt 0:00:12]} 35. Kh2 {[%emt 0:00:23]} d4 {[%emt 0:00:25][%cal Bd5d4,Bd4d3][%mdl 32] Strongly threatening ...d3.} 36. Bb5 {[%emt 0:00:34] Against d3} e5 {[%emt 0:00:53] And now ...e4 would win.} 37. Qf3 {[%emt 0:00:39]} e4 {[%emt 0:01:22]} 38. Qxe3 {[%emt 0:03:27]} Nxe3 {[%emt 0:00:18]} 39. a5 {[%emt 0:00:12]} d3 {[%emt 0:00:19] Weighted Error Value: White=0.56/Black=0.12 (very precise)} 0-1

[Event "RUDAR 2 IM 2022"]
[Site "Pozarevac"]
[Date "2022.04.03"]
[Round "2.1"]
[White "Acor, Corey"]
[Black "Andreev, Konstantin"]
[Result "1-0"]
[ECO "C00"]
[WhiteElo "2326"]
[BlackElo "2238"]
[Annotator "ChessBase"]
[PlyCount "119"]
[EventDate "2022.03.27"]
[EventType "tourn"]
[EventCountry "SRB"]
[SourceTitle "playchess.com"]
[Source "ChessBase"]
[SourceQuality "1"]
[TimeControl "40/5400+30:900+30"]

1. e4 {[%emt 0:03:57]} e6 {[%emt 0:00:08]} 2. d3 {[%emt 0:01:09]} d5 {[%emt 0:00:16]} 3. Nd2 {[%emt 0:00:21]} Nf6 {[%emt 0:00:19]} 4. g3 {[%emt 0:00:08]} dxe4 {[%emt 0:00:24]} 5. dxe4 {[%emt 0:00:08]} b6 {[%emt 0:00:15]} 6. Bg2 {[%emt 0:00:08]} Bb7 {[%emt 0:00:07]} 7. Qe2 {[%emt 0:01:06]} e5 {[%emt 0:03:37]} 8. Ngf3 {[%emt 0:00:15]} Ba6 {[%emt 0:00:06]} 9. c4 {[%emt 0:05:18]} Nc6 {[%emt 0:00:09]} 10. b3 {[%emt 0:06:09]} Bc5 {[%emt 0:16:47]} 11. O-O {[%emt 0:04:03]} O-O {[%emt 0:03:44]} 12. Bb2 {[%emt 0:01:35]} Qe7 {[%emt 0:01:19]} 13. Rad1 {[%emt 0:01:39]} Rab8 {[%emt 0:05:09]} 14. h3 {[%emt 0:08:07]} Rfe8 {[%emt 0:02:06]} 15. Rc1 {[%emt 0:02:59]} Nd7 {[%emt 0:03:37]} 16. Rfd1 {[%emt 0:08:35]} Nf8 {[%emt 0:09:19]} 17. Nb1 {[%emt 0:09:07]} f6 {[%emt 0:08:05]} 18. a3 {[%emt 0:19:33]} Ne6 {[%emt 0:02:31]} 19. b4 {[%emt 0:00:42]} Ncd4 {[%emt 0:00:14]} 20. Nxd4 {[%emt 0:06:42]} Bxd4 {[%emt 0:00:28]} 21. Qc2 {[%emt 0:04:07]} c5 {[%emt 0:03:08]} 22. b5 {[%emt 0:02:11]} Bb7 {[%emt 0:02:14]} 23. a4 {[%emt 0:00:37]} Rf8 {[%emt 0:02:48]} 24. Bc3 {[%emt 0:01:48]} f5 {[%emt 0:05:59]} 25. exf5 {[%emt 0:03:06]} Bxg2 {[%emt 0:01:00]} 26. Kxg2 {[%emt 0:00:13]} Qb7+ {[%emt 0:01:01]} 27. f3 {[%emt 0:03:20]} Ng5 {[%emt 0:04:29]} 28. Rf1 {[%emt 0:00:02]} e4 {[%emt 0:02:01]} 29. fxe4 {[%emt 0:01:24]} Nxe4 {[%emt 0:00:37]} 30. Kh2 {[%emt 0:00:18]} Rbe8 {[%emt 0:07:15]} 31. Qg2 {[%emt 0:00:12]} Qd7 {[%emt 0:01:54]} 32. Bxd4 {[%emt 0:02:20]} cxd4 {[%emt 0:00:10]} 33. Rce1 {[%emt 0:02:21]} Rxf5 {[%emt 0:00:58]} 34. Rxf5 {[%emt 0:01:42]} Qxf5 {[%emt 0:00:05]} 35. Nd2 {[%emt 0:00:06]} Nd6 {[%emt 0:00:19]} 36. Rxe8+ {[%emt 0:01:34]} Nxe8 {[%emt 0:00:05]} 37. Qf3 {[%emt 0:00:26]} Qxf3 {[%emt 0:12:17]} 38. Nxf3 {[%emt 0:00:02]} Nd6 {[%emt 0:00:11]} 39. Nxd4 {[%emt 0:01:06]} Nxc4 {[%emt 0:00:08]} 40. Nc6 {[%emt 0:00:00]} Nb2 {[%emt 0:00:00]} 41. a5 {[%emt 0:00:43]} bxa5 {[%emt 0:02:50]} 42. Nxa5 {[%emt 0:00:08]} Kf7 {[%emt 0:06:13]} 43. Nc6 {[%emt 0:00:02]} Nc4 {[%emt 0:01:00]} 44. Nxa7 {[%emt 0:00:15]} Na5 {[%emt 0:00:21]} 45. Kg2 {[%emt 0:02:40]} Ke6 {[%emt 0:05:47]} 46. Kf3 {[%emt 0:00:07]} Kd5 {[%emt 0:00:04]} 47. Kf4 {[%emt 0:02:01]} Kc5 {[%emt 0:00:54]} 48. Kf5 {[%emt 0:00:36]} Nc4 {[%emt 0:00:37]} 49. g4 {[%emt 0:04:46]} Nd6+ {[%emt 0:02:40]} 50. Ke5 {[%emt 0:00:42]} Nf7+ {[%emt 0:00:14]} 51. Kf5 {[%emt 0:02:04]} Nd6+ {[%emt 0:00:54]} 52. Ke6 {[%emt 0:00:55]} Ne4 {[%emt 0:00:04]} 53. h4 {[%emt 0:00:27]} Kb6 {[%emt 0:02:45]} 54. Nc8+ {[%emt 0:02:14]} Kxb5 {[%emt 0:01:39]} 55. Nd6+ {[%emt 0:00:33]} Nxd6 {[%emt 0:00:05]} 56. Kxd6 {[%emt 0:00:02]} Kc4 {[%emt 0:00:23]} 57. Ke6 {[%emt 0:00:08]} Kd4 {[%emt 0:00:44]} 58. Kf7 {[%emt 0:00:07]} g5 {[%emt 0:00:04]} 59. hxg5 {[%emt 0:01:01]} Ke5 {[%emt 0:00:06]} 60. g6 {[%emt 0:00:18]} 1-0